bitfinex/quotes_ETHUSD_20250808
["timestamp","ask_amount","ask_price","bid_price","bid_amount"]
[1754641779330,3.912,3911.0,3910.9,1.7025]
[1754641779457,3.912,3911.0,3910.9,4.25945619]
[1754641781264,3.912,3911.0,3910.9,1.7025]
[1754641781972,3.912,3911.0,3910.9,4.25945619]
[1754641782696,3.912,3911.0,3910.9,1.8305]
[1754641782894,3.912,3911.0,3910.3,4.29]
[1754641782895,8.24973752,3911.0,3910.4,1.262]
[1754641783062,3.912,3911.0,3910.6,0.128]
[1754641783269,6.46889832,3911.0,3910.6,0.128]
[1754641783666,5.2282,3911.0,3910.6,0.128]
[1754641783860,3.912,3911.0,3910.6,2.68514598]
[1754641784186,3.912,3911.0,3910.6,1.39]
[1754641784381,3.912,3911.0,3910.6,2.68513943]
[1754641784581,1.7808,3910.9,3910.1,0.04]
[1754641784796,2.55720315,3910.6,3910.1,0.04]
[1754641784998,2.55728622,3910.4,3910.1,0.04]
[1754641785169,1.3162,3910.3,3910.1,0.04]
[1754641785504,6.46941394,3910.2,3910.1,0.04]
[1754641786195,18.81604804,3910.2,3910.1,0.04]
[1754641786606,9.78047747,3910.2,3910.1,0.04]
[1754641787394,12.78047747,3910.2,3910.1,0.04]
[1754641787574,13.13506773,3910.2,3910.1,0.04]
[1754641788303,22.1706383,3910.2,3910.1,0.04]
[1754641788586,28.3146383,3910.2,3910.1,0.04]
[1754641790784,24.4026383,3910.2,3910.1,0.04]
[1754641791075,18.37647747,3910.2,3910.1,0.04]
[1754641791608,18.46507747,3910.2,3910.1,0.04]
[1754641791904,13.186,3910.2,3910.1,0.04]
[1754641792069,13.187,3910.2,3910.1,0.04]
[1754641792273,15.74441394,3910.2,3910.1,0.04]
[1754641792492,13.737,3910.2,3910.1,0.04]
[1754641793011,13.187,3910.2,3910.1,0.04]
[1754641793198,10.187,3910.2,3910.1,0.04]
[1754641793506,10.187,3910.2,3910.1,1.2743]
[1754641793810,10.059,3910.2,3910.1,1.7481]
[1754641794178,10.059,3910.2,3910.1,1.2743]
[1754641795387,3.915,3910.2,3910.1,1.2743]
[1754641795593,3.915,3910.2,3910.1,4.30557934]
[1754641795815,3.915,3910.2,3910.1,1.7481]
[1754641795993,3.914,3910.2,3910.1,4.30557934]
[1754641796380,0.128,3910.6,3910.1,1.7481]
[1754641796690,3.914,3910.5,3910.3,0.128]
[1754641797007,3.914,3910.4,3910.3,2.685336]
[1754641797577,0.128,3910.9,3910.6,2.55714223]
[1754641797777,3.915,3910.8,3910.6,2.55714223]
[1754641798102,3.915,3910.7,3910.6,2.68514223]
[1754641798416,0.128,3911.2,3910.6,0.128]
[1754641798626,6.273,3911.4,3910.8,2.55698914]
[1754641798928,3.915,3911.3,3910.9,4.26504164]
[1754641799131,3.915,3911.3,3911.0,4.26498057]
[1754641799358,3.915,3911.3,3911.0,1.7081]
[1754641799625,3.915,3911.3,3911.1,1.2343]
[1754641799792,6.273,3911.4,3911.0,3.03066907]
[1754641800114,3.915,3911.3,3911.1,1.2343]
[1754641800333,6.145,3911.4,3911.2,1.7081]
[1754641800513,3.915,3911.3,3911.2,0.6018]
[1754641800684,3.915,3911.3,3911.2,3.15856007]
[1754641801126,3.915,3911.3,3911.2,1.3623]
[1754641801305,3.915,3911.3,3911.2,0.128]
[1754641801511,3.914,3911.3,3911.2,0.128]
[1754641802491,3.914,3911.3,3911.1,0.128]
[1754641802811,1.269,3911.2,3910.9,0.128]
[1754641803014,3.914,3911.1,3910.9,2.68493264]
[1754641803195,3.914,3911.0,3910.9,0.128]
[1754641803728,6.20884,3911.0,3910.2,1.2343]
[1754641804020,0.55,3910.8,3910.1,0.04]
[1754641804323,2.68516853,3910.6,3910.1,0.04]
[1754641804499,0.55,3910.4,3910.1,0.04]
[1754641804706,0.128,3910.2,3910.1,0.04]
[1754641805388,1.8584,3910.2,3910.1,0.04]
[1754641806216,4.044,3910.2,3910.1,0.04]
[1754641806842,5.313,3910.2,3910.1,0.04]
[1754641807690,5.7744,3910.2,3910.1,0.04]
[1754641807903,5.313,3910.2,3910.1,0.04]
[1754641808104,3.915,3910.2,3910.1,1.2743]
[1754641808338,3.915,3910.2,3910.1,0.04]
[1754641810145,6.47241394,3910.2,3910.1,0.04]
[1754641810350,4.67931394,3910.2,3910.1,0.04]
[1754641810677,6.1649,3910.2,3910.1,0.04]
[1754641811042,0.128,3910.2,3910.1,0.04]
[1754641811242,4.044,3910.2,3910.1,0.04]
[1754641811449,5.7744,3910.2,3910.1,0.04]
[1754641812164,1.8584,3910.2,3910.1,0.04]
[1754641812363,5.7744,3910.2,3910.1,0.04]
[1754641812946,0.128,3910.2,3910.1,0.04]
[1754641813143,4.044,3910.2,3910.1,0.04]
[1754641813349,9.45925394,3910.2,3910.1,0.04]
[1754641813886,12.45925394,3910.2,3910.1,0.04]
[1754641818549,8.54325394,3910.2,3910.1,0.04]
[1754641818753,12.46125394,3910.2,3910.1,0.04]
[1754641819364,12.46125394,3910.2,3910.1,1e-08]
[1754641819704,3.10806814,3909.2,3909.1,0.04]
[1754641819852,7.33887495,3909.2,3909.1,0.04]
[1754641820193,8.72617495,3909.2,3909.1,0.04]
[1754641820375,9.19917495,3909.2,3909.1,0.04]
[1754641820948,12.19917495,3909.2,3909.1,0.04]
[1754641821349,23.50993268,3909.2,3909.1,0.04]
[1754641821551,23.50993268,3909.2,3908.1,0.04]
[1754641821552,3.10872268,3908.2,3908.1,0.04]
[1754641821752,7.15572268,3908.2,3908.1,0.04]
[1754641821981,8.88802268,3908.2,3908.1,0.04]
[1754641822485,8.89102268,3908.2,3908.1,0.04]
[1754641822777,8.41802268,3908.2,3908.1,0.04]
[1754641822980,4.6,3908.2,3908.1,0.04]
[1754641823886,4.29083158,3908.5,3908.1,0.04]
[1754641823887,2.55854037,3908.5,3908.1,0.04]
[1754641824049,0.128,3908.2,3908.1,0.04]
[1754641824251,7.15772268,3908.2,3908.1,0.04]
[1754641824589,8.89002268,3908.2,3908.1,0.04]
[1754641825586,3.23672268,3908.2,3908.1,0.04]
[1754641825760,4.05,3908.2,3908.1,0.04]
[1754641826756,6.5751531,3908.2,3908.1,0.04]
[1754641826952,9.13387578,3908.2,3908.1,0.04]
[1754641827159,5.3158531,3908.2,3908.1,0.04]
[1754641827358,4.6,3908.2,3908.1,0.04]
[1754641829422,10.15872268,3908.2,3908.1,0.04]
[1754641829715,11.89102268,3908.2,3908.1,0.04]
[1754641835063,20.95739866,3908.2,3908.1,0.04]
[1754641835462,20.95739866,3908.2,3907.9,1e-08]
[1754641835463,6.10885363,3908.0,3907.9,1e-08]
[1754641835696,2.56003276,3906.2,3905.8,0.8]
[1754641835897,2.56003276,3906.2,3904.1,0.04]
[1754641835898,0.55,3906.1,3904.1,0.04]
[1754641836117,2.56068259,3905.3,3904.5,1.1989]
[1754641836332,6.23868831,3905.2,3904.3,0.128]
[1754641836630,12.22279512,3905.2,3904.1,0.04]
[1754641836845,2.56134419,3904.2,3904.1,0.04]
[1754641837058,7.05234419,3904.2,3904.1,0.04]
[1754641837259,10.18034419,3904.2,3904.1,0.04]
[1754641837468,0.128,3904.2,3904.1,0.04]
[1754641837731,1.2593,3905.1,3904.1,1.6968]
[1754641837732,2.56081946,3905.0,3904.1,1.6968]
[1754641838030,3.11134419,3904.2,3904.1,0.04]
[1754641838198,11.79064419,3904.2,3904.1,0.04]
[1754641838398,23.14354385,3904.2,3904.1,0.04]
[1754641838599,3.55,3904.2,3904.1,0.04]
[1754641838834,3.948,3904.2,3904.1,0.04]
[1754641839023,3.952,3904.2,3904.1,1.6968]
[1754641839221,3.952,3904.2,3904.1,0.04]
[1754641839457,4.502,3904.2,3904.1,0.04]
[1754641839735,11.79564419,3904.2,3904.1,0.04]
[1754641840213,23.14854385,3904.2,3904.1,0.04]
[1754641840542,7.502,3904.2,3904.1,0.04]
[1754641840725,3.0,3904.2,3904.1,0.04]
[1754641841034,6.962,3904.2,3904.1,0.04]
[1754641841404,3.963,3904.2,3904.1,0.04]
[1754641841908,7.57434419,3904.2,3904.1,0.04]
[1754641842144,7.2836,3904.2,3904.1,0.04]
[1754641842302,4.463,3904.2,3904.1,0.04]
[1754641842504,4.466,3904.2,3904.1,4.25820979]
[1754641842803,4.466,3904.2,3904.1,2.60140979]
[1754641843003,4.466,3904.2,3904.1,4.25820979]
[1754641843229,4.466,3904.2,3904.1,1.6968]
[1754641843449,0.5,3904.2,3904.1,4.25820979]
[1754641843746,0.5,3904.2,3904.1,5.08988323]
[1754641844116,0.5,3904.2,3904.1,4.25820979]
[1754641844310,4.468,3904.2,3904.1,4.25820979]
[1754641844549,4.28441712,3905.4,3904.1,4.6968]
[1754641844550,1.25080061,3905.4,3904.1,4.6968]
[1754641844759,2.55992067,3906.4,3905.4,2.56053131]
[1754641844903,3.973,3906.3,3905.2,1.1989]
[1754641845106,0.769575,3906.8,3905.2,1.1989]
[1754641845107,0.82652205,3906.2,3905.2,1.1989]
[1754641845421,2.5585019,3908.6,3906.0,2.56016385]
[1754641845422,3.978,3906.1,3906.0,2.56016385]
[1754641845634,3.978,3906.1,3906.0,4.21696385]
[1754641845942,4.018,3906.9,3906.8,2.5596396]
[1754641846148,4.018,3906.9,3906.8,4.2508396]
[1754641846318,0.04,3906.9,3906.8,4.2508396]
[1754641846639,0.04,3906.9,3906.8,4.93189639]
[1754641847418,0.04,3906.9,3906.8,7.93189639]
[1754641847848,0.04,3906.9,3906.8,8.05989639]
[1754641848206,0.04,3908.9,3907.8,2.55898459]
[1754641848454,3.982,3908.1,3907.8,2.55898459]
[1754641848750,3.982,3908.1,3907.0,2.55950857]
[1754641848751,0.55,3907.8,3907.0,2.55950857]
[1754641848932,4.59848804,3907.7,3906.9,3.9484596]
[1754641849265,4.59848804,3907.7,3905.4,2.56053797]
[1754641849266,1.5779,3907.6,3905.7,0.4303]
[1754641849410,0.128,3906.8,3906.3,2.5599279]
[1754641849734,3.987,3906.7,3906.6,2.55977064]
[1754641849934,3.987,3906.7,3906.4,2.55990169]
[1754641850872,0.128,3906.8,3906.3,2.5599534]
[1754641851147,2.55874218,3908.2,3906.2,0.128]
[1754641851148,3.988,3907.1,3906.5,1.2609]
[1754641851315,3.988,3907.1,3907.0,2.55950857]
[1754641851518,3.988,3907.1,3906.5,1.2609]
[1754641851758,3.988,3907.1,3906.2,2.56003276]
[1754641852042,3.988,3907.1,3906.5,2.55977919]
[1754641852262,3.988,3907.1,3906.0,0.001]
[1754641852263,1.5779,3907.0,3906.0,0.001]
[1754641852408,0.55,3906.9,3906.0,0.001]
[1754641852612,0.55,3906.8,3906.0,0.001]
[1754641852812,2.56004139,3906.2,3906.0,0.001]
[1754641853154,6.5520983,3906.1,3906.0,0.001]
[1754641853361,8.1299983,3906.1,3906.0,0.001]
[1754641854916,8.6799983,3906.1,3906.0,0.001]
[1754641856334,2.56033792,3905.8,3905.0,2.10181065]
[1754641856640,3.989,3905.7,3905.1,2.56074445]
[1754641856845,3.989,3905.7,3905.2,2.56066217]
[1754641857042,3.989,3905.7,3905.2,3.82156217]
[1754641857341,4.13839024,3905.6,3904.8,2.56089544]
[1754641857539,4.13839024,3905.6,3904.7,1.2609]
[1754641857540,1.5779,3905.6,3904.9,2.56087963]
[1754641857840,1.1485,3905.6,3905.0,2.56080381]
[1754641858049,3.989,3905.7,3904.7,1.2609]
[1754641858345,2.5606782,3905.3,3904.6,2.56106832]
[1754641858520,4.93215,3905.7,3904.3,3.82214095]
[1754641858521,6.54773418,3905.2,3904.5,2.56113368]
[1754641858728,3.987,3905.1,3904.6,2.5610788]
[1754641858923,5.1355,3905.1,3904.5,2.56113515]
[1754641859131,5.1355,3905.1,3904.3,1.2609]
[1754641859429,2.56112719,3904.6,3904.1,0.04]
[1754641859613,3.989,3904.5,3904.1,0.04]
[1754641859809,3.989,3904.4,3904.1,2.60139324]
[1754641860065,3.989,3904.3,3904.2,1.2609]
[1754641860212,2.56049161,3905.5,3904.2,1.6912]
[1754641860414,6.151,3905.6,3904.2,1.6912]
[1754641860415,3.989,3905.4,3904.6,2.56103456]
[1754641860647,2.56064701,3905.3,3904.6,2.56103456]
[1754641860849,3.989,3905.4,3904.6,2.56105165]
[1754641861046,2.56077006,3905.1,3904.2,2.56127934]
[1754641861247,0.128,3904.9,3904.2,2.56127978]
[1754641861421,0.128,3904.7,3904.3,2.56125727]
[1754641861761,8.12999479,3904.6,3904.1,0.04]
[1754641861964,4.119,3904.6,3904.2,2.56134419]
[1754641862130,4.119,3904.6,3904.3,3.8221311]
[1754641862330,4.119,3904.6,3904.1,0.04]
[1754641862858,0.128,3904.6,3904.3,2.56127139]
[1754641863018,3.70937309,3905.0,3904.3,2.56127602]
[1754641863214,2.68913218,3904.6,3904.1,0.168]
[1754641863419,3.991,3904.5,3904.1,0.04]
[1754641863650,0.128,3904.3,3904.1,0.04]
[1754641864056,3.70919407,3905.2,3904.3,2.5612356]
[1754641864355,2.5610818,3904.6,3904.1,0.04]
[1754641864516,0.128,3904.3,3904.1,0.04]
[1754641865257,1.2765,3904.3,3904.1,0.04]
[1754641865441,1.1485,3904.2,3904.1,0.04]
[1754641865823,0.5574,3904.3,3904.1,0.04]
[1754641865824,0.128,3904.3,3904.1,0.04]
[1754641866331,0.4294,3905.0,3904.1,1.3009]
[1754641866332,4.0,3904.2,3904.1,1.3009]
[1754641866533,2.68903458,3904.7,3904.1,0.168]
[1754641866733,6.151,3905.6,3904.1,0.168]
[1754641866734,4.0,3904.6,3904.1,0.31979]
[1754641866956,4.0,3904.5,3904.4,2.56121299]
[1754641867346,4.0,3904.5,3904.1,2.6013909]
[1754641867543,4.0,3904.5,3904.4,2.56121299]
[1754641867779,4.0,3904.5,3904.4,3.82211299]
[1754641867924,0.00770418,3905.0,3904.1,0.04]
[1754641868125,4.004,3904.9,3904.7,2.56100304]
[1754641868827,4.004,3904.9,3904.5,2.56109146]
[1754641869157,4.004,3904.9,3904.2,1.6912]
[1754641869496,4.004,3904.9,3904.4,2.56114805]
[1754641869664,4.004,3904.9,3904.5,2.56113633]
[1754641869978,2.56095062,3904.8,3904.1,0.04]
[1754641870176,1.5779,3904.8,3904.1,0.04]
[1754641870474,2.56134419,3904.2,3904.1,0.04]
[1754641870628,6.56934419,3904.2,3904.1,0.04]
[1754641870829,5.5859,3904.2,3904.1,0.04]
[1754641871142,4.008,3904.2,3904.1,0.04]
[1754641872340,4.008,3904.2,3904.1,2.60140979]
[1754641872341,4.007,3904.2,3904.1,2.60140979]
[1754641872537,4.007,3904.2,3904.1,0.04]
[1754641872735,5.1555,3904.2,3904.1,0.04]
[1754641872971,5.5849,3904.2,3904.1,0.04]
[1754641873956,8.14624419,3904.2,3904.1,0.04]
[1754641874158,8.96086379,3904.2,3904.1,0.04]
[1754641874363,9.51086379,3904.2,3904.1,0.04]
[1754641876794,9.63886379,3904.2,3904.1,0.04]
[1754641877665,9.08886379,3904.2,3904.1,0.04]
[1754641878809,8.67366379,3904.2,3904.1,0.04]
[1754641879164,4.134,3904.2,3904.1,0.04]
[1754641879366,8.31914419,3904.2,3904.1,0.04]
[1754641879578,8.86914419,3904.2,3904.1,0.04]
[1754641880097,4.135,3904.2,3904.1,0.04]
[1754641880285,8.32014419,3904.2,3904.1,0.04]
[1754641880476,9.42778663,3904.2,3904.1,0.04]
[1754641881260,9.42778663,3904.2,3904.0,1.497]
[1754641881261,3.11140979,3904.1,3904.0,1.497]
[1754641881464,7.73520979,3904.1,3904.0,1.497]
[1754641882083,11.87020979,3904.1,3904.0,1.497]
[1754641883393,11.87020979,3904.1,3903.8,0.001]
[1754641883394,3.11154102,3903.9,3903.8,0.001]
[1754641883593,7.44761106,3903.9,3903.8,0.001]
[1754641883809,9.07141106,3903.9,3903.8,0.001]
[1754641883977,9.19941106,3903.9,3903.8,0.001]
[1754641884174,9.19941106,3903.9,3903.8,1e-08]
[1754641884175,12.19941106,3903.9,3903.8,1e-08]
[1754641884551,6.1120004,3903.2,3903.1,1e-08]
[1754641884676,10.6417504,3903.2,3903.1,1e-08]
[1754641884882,4.06375,3903.2,3903.1,1e-08]
[1754641885090,1.1637,3903.2,3903.1,1e-08]
[1754641885301,8.2957004,3903.2,3903.1,1e-08]
[1754641885504,8.7558004,3903.2,3903.1,1e-08]
[1754641886277,11.7558004,3903.2,3903.1,1e-08]
[1754641886482,11.7588004,3903.2,3903.1,1e-08]
[1754641886675,13.38019284,3903.2,3903.1,1e-08]
[1754641888705,13.37919284,3903.2,3903.1,1e-08]
[1754641888918,6.154,3903.4,3903.1,1e-08]
[1754641889229,4.022,3903.3,3903.1,1e-08]
[1754641889444,6.154,3903.4,3903.1,1e-08]
[1754641889588,4.023,3903.3,3903.1,1e-08]
[1754641889924,4.023,3903.3,3903.2,1.5781]
[1754641890138,4.023,3903.3,3903.2,4.1401004]
[1754641890429,6.154,3903.4,3903.3,2.56193477]
[1754641890635,10.177,3903.4,3903.3,1.5781]
[1754641890802,10.177,3903.4,3903.3,4.14003477]
[1754641891006,2.69132752,3905.1,3903.3,4.14003477]
[1754641891007,6.156,3904.8,3903.3,1.5781]
[1754641891220,6.156,3904.8,3903.1,2.56206315]
[1754641891221,4.025,3904.7,3903.5,2.56174182]
[1754641891406,2.56119906,3904.5,3903.7,2.56161701]
[1754641891723,4.025,3904.4,3903.8,1.1456]
[1754641892420,2.56146077,3904.1,3903.8,1.1456]
[1754641892716,2.5616043,3903.9,3903.3,1.1456]
[1754641893022,4.024,3903.8,3903.4,2.56186345]
[1754641893237,4.024,3903.8,3903.1,1.57810001]
[1754641893396,2.56159326,3903.9,3903.1,1.57810001]
[1754641893586,4.023,3903.8,3903.1,1.57810001]
[1754641893788,0.4601,3904.4,3903.1,1.57810001]
[1754641893789,2.56116241,3904.5,3903.7,2.56164224]
[1754641893992,2.56103343,3904.7,3903.8,1.5781]
[1754641894231,6.156,3904.8,3903.7,2.56165492]
[1754641894232,4.022,3904.5,3904.0,0.128]
[1754641894431,6.156,3904.8,3904.3,0.128]
[1754641894605,2.56115378,3904.5,3904.1,1.1456]
[1754641894936,6.58622352,3904.4,3904.0,0.128]
[1754641895120,4.025,3904.4,3904.0,0.128]
[1754641895316,4.025,3904.4,3904.0,1.2736]
[1754641895518,4.025,3904.4,3904.1,1.1456]
[1754641895862,4.025,3904.4,3904.2,1.5781]
[1754641896135,4.025,3904.4,3904.3,1.5781]
[1754641896340,4.025,3904.4,3904.3,4.26737859]
[1754641896543,4.025,3904.4,3904.3,4.95025533]
[1754641896745,0.2495,3904.9,3904.3,2.38897674]
[1754641896910,0.2495,3904.9,3904.8,2.56095062]
[1754641897106,0.2495,3904.9,3904.8,4.26705062]
[1754641899043,0.2495,3904.9,3904.8,1.2736]
[1754641899213,0.2495,3904.9,3904.8,3.83455062]
[1754641899413,0.2495,3904.9,3904.8,0.128]
[1754641899741,0.2495,3904.9,3904.8,4.13905062]
[1754641899947,0.2495,3904.9,3904.8,4.26705062]
[1754641902937,0.2495,3904.9,3904.8,4.13905062]
[1754641903144,0.2495,3904.9,3904.8,4.26705062]
[1754641904174,4.2765,3904.9,3904.3,2.56126324]
[1754641904325,0.42842042,3904.8,3904.3,2.56124321]
[1754641904523,4.2765,3904.9,3904.1,1.1456]
[1754641904757,0.2495,3904.9,3904.2,0.4325]
[1754641904925,4.052,3904.8,3904.5,2.56111035]
[1754641905124,1.1637,3904.7,3903.4,1.1466]
[1754641905361,1.1637,3904.7,3903.6,2.56173496]
[1754641905543,2.56121299,3904.4,3903.4,0.001]
[1754641905743,6.153,3904.4,3903.4,0.001]
[1754641905943,2.56142584,3904.1,3903.4,0.001]
[1754641906222,5.706,3904.3,3903.4,0.001]
[1754641906440,1.65,3904.0,3903.4,0.001]
[1754641906640,1.65,3904.0,3903.4,2.56282305]
[1754641906857,1.65,3904.0,3903.4,0.001]
[1754641907048,1.65,3904.0,3903.5,2.56179306]
[1754641907248,2.56135982,3904.2,3903.4,0.001]
[1754641907249,4.21154799,3903.9,3903.4,0.001]
[1754641907565,4.055,3903.8,3903.4,0.001]
[1754641907722,5.705,3903.8,3903.4,0.001]
[1754641908057,1.65,3903.7,3903.4,0.001]
[1754641908445,0.4465,3903.7,3903.4,0.001]
[1754641908653,1.2035,3903.6,3903.4,0.001]
[1754641909067,4.2118035,3903.5,3903.4,0.001]
[1754641909529,1.65,3903.5,3903.4,0.001]
[1754641910163,4.2118035,3903.5,3903.4,0.001]
[1754641910461,1.65,3903.5,3903.4,0.001]
[1754641911074,8.2648035,3903.5,3903.4,0.001]
[1754641911258,11.3930667,3905.4,3903.4,0.001]
[1754641911569,1.65,3903.5,3903.4,0.001]
[1754641911770,8.2688035,3903.5,3903.4,0.001]
[1754641912566,8.8188035,3903.5,3903.4,0.001]
[1754641913362,8.8188035,3903.5,3903.4,1e-08]
[1754641913681,13.21974598,3903.5,3903.4,1e-08]
[1754641913880,43.21974598,3903.5,3903.4,1e-08]
[1754641914172,43.72410924,3903.5,3903.4,1e-08]
[1754641914337,44.06360783,3903.5,3903.4,1e-08]
[1754641915376,6.1120004,3903.2,3903.1,1e-08]
[1754641915571,40.8495204,3903.2,3903.1,1e-08]
[1754641915752,42.4995204,3903.2,3903.1,1e-08]
[1754641916154,38.4365204,3903.2,3903.1,1e-08]
[1754641916348,42.5005204,3903.2,3903.1,1e-08]
[1754641916961,38.4365204,3903.2,3903.1,1e-08]
[1754641917163,42.4995204,3903.2,3903.1,1e-08]
[1754641917471,11.8215204,3903.2,3903.1,1e-08]
[1754641917637,11.9495204,3903.2,3903.1,1e-08]
[1754641918481,5.4365204,3903.2,3903.1,1e-08]
[1754641918772,9.5005204,3903.2,3903.1,1e-08]
[1754641920359,1.22452,3903.2,3903.1,1e-08]
[1754641920563,5.28452,3903.2,3903.1,1e-08]
[1754641920739,0.128,3903.2,3903.1,1e-08]
[1754641920945,4.188,3903.2,3903.1,1e-08]
[1754641921447,8.4000004,3903.2,3903.1,1e-08]
[1754641921649,11.9500004,3903.2,3903.1,1e-08]
[1754641922059,8.5075004,3903.2,3903.1,1e-08]
[1754641922258,4.191,3903.2,3903.1,1e-08]
[1754641922877,6.156,3903.8,3903.1,1e-08]
[1754641923179,0.128,3903.2,3903.1,1.64770001]
[1754641923349,4.191,3903.2,3903.1,1.64770001]
[1754641923681,4.191,3903.2,3903.1,1.17670001]
[1754641923983,4.063,3903.2,3903.1,4.20976606]
[1754641924156,4.063,3903.2,3903.1,2.33769303]
[1754641924481,4.063,3903.2,3903.1,4.20974524]
[1754641924845,6.156,3903.8,3903.1,4.20974524]
[1754641924846,6.156,3903.8,3903.7,2.56167225]
[1754641925081,0.002,3904.8,3904.2,2.56134324]
[1754641925277,0.002,3904.8,3904.0,2.56141177]
[1754641925582,4.062,3904.3,3903.8,1.1767]
[1754641925748,4.062,3904.3,3903.9,4.20924102]
[1754641926101,0.002,3904.8,3904.3,2.56127859]
[1754641926386,4.063,3904.4,3904.3,2.56127859]
[1754641926759,0.002,3904.4,3904.3,4.20897859]
[1754641926949,4.066,3904.4,3904.3,4.20897859]
[1754641927461,0.002,3904.4,3904.3,4.33697859]
[1754641927662,0.002,3904.4,3904.3,5.02681736]
[1754641928073,1e-08,3904.4,3904.3,5.05243014]
[1754641928273,1e-08,3904.4,3904.3,8.05243014]
[1754641928485,1e-08,3904.4,3904.3,8.02681736]
[1754641932774,1e-08,3904.4,3904.3,6.37911736]
[1754641932960,1e-08,3904.4,3904.3,5.68927859]
[1754641933379,1e-08,3904.4,3904.3,6.86597859]
[1754641933584,1e-08,3904.4,3904.3,7.33697859]
[1754641936982,0.2495,3904.9,3904.8,2.56095062]
[1754641937180,0.2495,3904.9,3904.8,5.56095062]
[1754641937389,0.2495,3904.9,3904.8,8.39824901]
[1754641937759,1e-08,3905.0,3904.9,5.56088504]
[1754641937965,1e-08,3905.0,3904.9,5.68888504]
[1754641938165,1e-08,3905.0,3904.9,7.30848504]
[1754641939175,1e-08,3905.2,3905.1,5.56075388]
[1754641939384,1e-08,3905.2,3905.1,11.10554267]
[1754641939698,0.002,3906.1,3905.8,2.56029494]
[1754641939901,0.002,3906.1,3905.8,2.43879494]
[1754641940268,1.6774,3905.9,3905.8,2.43879494]
[1754641941068,1.6774,3905.9,3905.8,0.128]
[1754641941588,1.6774,3905.9,3905.8,2.68829494]
[1754641941977,1.6774,3905.9,3905.8,0.128]
[1754641942698,1.6774,3905.9,3904.7,0.2566]
[1754641942699,4.66163704,3905.9,3904.6,2.56103383]
[1754641943001,4.66163704,3905.9,3904.2,4.049]
[1754641943002,1.6354,3905.8,3905.5,0.128]
[1754641943371,3.02622472,3905.9,3905.5,0.128]
[1754641943372,0.46595197,3905.9,3905.5,0.128]
[1754641943571,1.6354,3905.7,3905.5,0.128]
[1754641943771,1.6354,3905.6,3905.5,0.128]
[1754641944804,1.6354,3905.6,3905.5,2.68849161]
[1754641945412,1.6354,3905.6,3905.5,0.128]
[1754641945710,1.6354,3905.6,3905.3,0.128]
[1754641945919,1.6354,3905.5,3905.2,2.56068117]
[1754641946223,1.6354,3905.5,3903.5,2.56174131]
[1754641946224,2.56065259,3905.3,3905.0,0.128]
[1754641946377,4.045,3905.2,3903.9,0.4209241]
[1754641946571,0.128,3904.9,3904.3,2.68926239]
[1754641946772,1.6354,3904.8,3904.3,2.68926149]
[1754641946974,1.6354,3904.7,3904.3,2.68926149]
[1754641947224,1.6354,3904.6,3904.4,2.56121054]
[1754641947407,0.128,3904.9,3904.3,2.68926059]
[1754641947603,1.6354,3904.5,3904.4,2.56121299]
[1754641947904,1.6354,3904.5,3904.1,0.128]
[1754641948072,5.6804,3904.4,3904.0,2.56145982]
[1754641948277,1.6354,3904.3,3904.0,0.128]
[1754641948495,1.6354,3904.3,3904.0,2.68946963]
[1754641948796,4.045,3904.4,3904.2,2.5612963]
[1754641949001,5.2245,3904.4,3904.2,2.56132125]
[1754641949218,5.2245,3904.4,3904.1,2.56140643]
[1754641949397,5.2245,3904.4,3904.2,2.56132342]
[1754641949624,4.043,3904.5,3904.0,0.128]
[1754641949931,1.6354,3904.4,3904.0,2.56144459]
[1754641950131,1.6354,3904.3,3904.0,2.68944459]
[1754641950339,1.6354,3904.3,3903.7,2.56162539]
[1754641950639,1.6354,3904.2,3903.8,0.128]
[1754641951133,0.128,3904.4,3903.8,0.128]
[1754641951438,4.043,3904.5,3904.4,2.56117009]
[1754641951807,4.043,3904.5,3904.3,0.128]
[1754641952002,5.2225,3904.5,3904.3,0.128]
[1754641952208,1.1795,3904.7,3903.7,2.56167225]
[1754641952435,5.2215,3904.6,3904.2,0.128]
[1754641952633,0.19403921,3905.4,3903.6,0.001]
[1754641952634,1.6354,3904.5,3903.6,0.001]
[1754641952822,1.6354,3904.5,3903.7,0.128]
[1754641952823,2.56134419,3904.2,3903.7,0.128]
[1754641953010,4.042,3904.4,3903.6,0.001]
[1754641953011,2.56160844,3903.8,3903.6,0.001]
[1754641953211,4.042,3903.7,3903.6,0.001]
[1754641953413,5.2215,3903.7,3903.6,2.56270595]
[1754641953615,8.81961225,3903.7,3903.6,0.001]
[1754641953844,8.94761225,3903.7,3903.6,0.001]
[1754641954335,1.7634,3903.7,3903.6,0.001]
[1754641954537,4.042,3903.7,3903.6,0.001]
[1754641954737,5.2215,3903.7,3903.6,0.001]
[1754641954946,1.1795,3903.7,3903.6,0.001]
[1754641955240,5.6774,3903.7,3903.6,0.001]
[1754641955913,5.2215,3903.7,3903.6,0.001]
[1754641956115,8.23907225,3903.7,3903.6,0.001]
[1754641956327,9.75377948,3903.7,3903.6,0.001]
[1754641958815,5.71177948,3903.7,3903.6,0.001]
[1754641959020,9.75077948,3903.7,3903.6,0.001]